Cogmind - Beta 16.1 @@@ ROGUE MODE // 2026.02.09 @ 20:59:43 Player: Gamma Result: Destroyed by JQ-MFO(R) with Subdweller Laser Performance ------------- Evolutions (0) 0 Regions Visited (3) 600 Robots Destroyed (20) 100 Value Destroyed (550) 550 Prototype IDs (0) 0 Alien Tech Used (0) 0 Bonus (0) 0 TOTAL SCORE: 1250 Bonus ------- None Cogmind --------- Core Integrity 0/250 Matter 299/300 Energy 240/250 System Corruption 3% Temperature Cool (6) Movement Walking (120) Location -10/Subcaves Parts ------- > --- POWER (1) -------- Ion Engine > --- PROPULSION (2) --- Aluminum Leg Aluminum Leg > --- UTILITY (2) ------ Heat Sink Medium Storage Unit > --- WEAPON (2) ------- Medium Laser Small Laser > --- INVENTORY (10) --- Aluminum Leg Aluminum Leg Aluminum Leg Titanium Leg Titanium Leg Heat Sink Improved Heat Sink Experimental Sensor Array Grenade Launcher Grenade Launcher Peak State ------------ > --- POWER ------------ Ion Engine > --- PROPULSION ------- Aluminum Leg Aluminum Leg > --- UTILITY ---------- Heat Sink Medium Storage Unit > --- WEAPON ----------- Medium Laser Small Laser > --- INVENTORY -------- Aluminum Leg Aluminum Leg Titanium Leg Titanium Leg Heat Sink Improved Heat Sink Experimental Sensor Array Grenade Launcher Grenade Launcher [Rating: 9] Favorites ----------- Power Ion Engine Engine Ion Engine Propulsion Aluminum Leg Leg Aluminum Leg Utility Medium Storage Unit Device Heat Sink Storage Medium Storage Unit Weapon EM Pulse Gun Energy Gun EM Pulse Gun Launcher Grenade Launcher Build | -11 -10 -10 -10 ------- Run | Yrd Mat Min Sub Slots Evolved . | . . . . Power . | . . . . Propulsion . | . . . . Utility . | . . . . Weapon . | . . . . Parts Attached 18 | 6 5 7 . Power 3 | 1 1 1 . Engine 3 | 1 1 1 . Core . | . . . . Reactor . | . . . . Propulsion 6 | 2 2 2 . Treads . | . . . . Leg 6 | 2 2 2 . Wheel . | . . . . Hover . | . . . . Flight . | . . . . Utility 3 | 1 1 1 . Device 1 | . . 1 . Storage 2 | 1 1 . . Processor . | . . . . Hackware . | . . . . Protection . | . . . . Artifact . | . . . . Weapon 6 | 2 1 3 . Energy Gun 4 | 2 . 2 . Energy Cannon . | . . . . Ballistic Gun . | . . . . Ballistic Cannon . | . . . . Launcher 2 | . 1 1 . Special Weapon . | . . . . Impact Weapon . | . . . . Slashing Weapon . | . . . . Piercing Weapon . | . . . . Special Melee Weapon . | . . . . Unidentified Prototypes . | . . . . Corrupted Parts 1 | . 1 . . System Corruption 2 | . 2 . . Parts Lost 7 | . 2 5 . Power 2 | . 1 1 . Propulsion 3 | . 1 2 . Utility . | . . . . Weapon 2 | . . 2 . Highest Loss Streak 3 | . 1 3 . To Critical Strikes . | . . . . Average Backups 7 | 2 6 9 10 Power . | . . . . Propulsion 3 | 1 2 3 5 Utility 1 | . . 2 3 Weapon 2 | . 2 2 2 Tool/Special . | . . . . Unused Backups 10 | . 2 1 7 Power . | . . . . Propulsion 7 | . 2 1 4 Utility 3 | . . . 3 Weapon . | . . . . Tool/Special . | . . . . Average Slot Usage (%) 84 | . 81 76 100 Engine 12 | . 13 10 14 Leg 25 | . 25 24 28 Device 3 | . . 1 14 Storage 14 | . 14 14 14 Energy Gun 25 | . 24 24 28 Launcher 1 | . 3 1 . Peak Build Rating 9 | 6 8 9 9 Average Rating 6 | 4 5 7 9 On Entrance 5 | . 6 7 9 Avg Prop Armor Cover (%) 7 | . 7 . . Naked Turns . | . . . . Heaviest Build 19 | 14 19 19 19 Greatest Support 20 | 20 20 20 20 Greatest Overweight (x) 4 | 2 1 4 . Average Overweight (x) . | . . . . Largest Inventory Capacity 10 | 8 10 10 10 Average Capacity 9 | 7 8 10 10 Most Carried 10 | 4 8 10 10 Average Carried 8 | 2 6 9 10 Final Capacity 10 | 8 10 10 10 Final Carried 10 | 4 8 10 10 Class Distribution -------------------- 74% | Mutant 25% | Scavenger-Mutant Dominant Class ---------------- Mutant | -10/Materials Mutant | -10/Mines Scavenger-Mutant | -10/Subcaves Resources | -11 -10 -10 -10 ----------- Run | Yrd Mat Min Sub Matter Collected 480 | 147 170 113 50 Remotely . | . . . . Salvage Created 752 | . 531 171 50 Parts 36 | . 22 13 1 Haulers Intercepted 1 | . 1 . . Recyclers Shooed . | . . . . Parts Field Recycled . | . . . . Retrieved Matter . | . . . . Parts Self-Destructed 1 | . . . 1 Prevented . | . . . . Parts Restored . | . . . . Kills | -11 -10 -10 -10 ------- Run | Yrd Mat Min Sub Combat Hostiles Destroyed 16 | . 9 6 1 Guns 13 | . 6 6 1 AOE 3 | . 3 . . Classes Destroyed 9 | . 7 1 1 Hauler 1 | . 1 . . Recycler 2 | . 2 . . Mechanic 1 | . 1 . . Operator 1 | . 1 . . Watcher 1 | . 1 . . Swarmer 3 | . 3 . . Grunt 10 | . 6 4 . Sentry 1 | . . . 1 Assembled 2 | . . 2 . Best Kill Streak 4 | . 4 3 1 Combat Bots Only 3 | . 3 3 1 Max Kills in Single Turn 3 | . 3 1 1 Gunslinging . | . . . . Exploded 1 | . 1 . . Melee . | . . . . Uniques/NPCs Destroyed . | . . . . Combat | -11 -10 -10 -10 -------- Run | Yrd Mat Min Sub Hostile Shots Fired 70 | . 34 22 14 Missed 25 | . 17 6 2 Hits 45 | . 17 16 12 Melee 2 | . . 2 . Projectile 43 | . 17 14 12 Damage Taken 927 | . 376 341 210 Core 252 | . 78 90 84 Absorbed by Shields . | . . . . Core Remaining (%) 100 | 100 . . . Volleys Fired 74 | 1 39 24 10 Largest 2 | 2 2 2 2 Hottest 90 | 80 80 90 90 Shots Fired 121 | 2 69 36 14 Gun 112 | 2 66 30 14 Cannon . | . . . . Launcher 9 | . 3 6 . Special . | . . . . Kinetic . | . . . . Thermal 30 | . . 16 14 Explosive 9 | . 3 6 . Electromagnetic 82 | 2 66 14 . Robot Hit Streak 17 | 2 7 10 17 Robot Miss Streak 4 | . 4 3 1 Penetration Max . | . . . . Secondary Targets 1 | . . 1 . Max Gunslinging Chain 1 | . . 1 . Shots Hit Robots 79 | 2 44 21 12 Core Hits 42 | 1 21 17 3 Critical Kills . | . . . . Critical Parts Destroyed . | . . . . Critical Strikes . | . . . . Melee Attacks . | . . . . Impact . | . . . . Slashing . | . . . . Piercing . | . . . . Sneak Attacks . | . . . . Combat Hostiles . | . . . . Follow-up Attacks . | . . . . Damage Inflicted 1704 | 24 1237 299 144 Guns 1042 | 24 614 260 144 Cannons . | . . . . Explosions 662 | . 623 39 . Melee . | . . . . Ramming . | . . . . Kinetic . | . . . . Thermal 720 | . 442 134 144 Explosive 220 | . 181 39 . Electromagnetic 764 | 24 614 126 . Impact . | . . . . Slashing . | . . . . Piercing . | . . . . Highest Corruption 3 | . 2 3 3 Average Corruption 2 | . 2 2 3 Corruption Purged . | . . . . Corruption Blocked . | . . . . Effects 18 | . 3 9 6 Message Errors 2 | . . 1 1 Matter Fused 2 | . . 1 1 Heat Flow Errors 5 | . 1 4 . Energy Discharges 6 | . 1 2 3 Data Loss (minor) 2 | . 1 1 . Data Loss (major) 1 | . . . 1 Overload Shots . | . . . . Overflow Damage 243 | . 243 . . Projectiles . | . . . . Explosions 243 | . 243 . . Melee . | . . . . Knockbacks . | . . . . Impact . | . . . . Kinetic . | . . . . Secondary . | . . . . Self-Inflicted Damage 197 | . 152 45 . Shots 4 | . 2 2 . Rammed . | . . . . Targets Rammed . | . . . . Kicked . | . . . . Crushed . | . . . . Highest Temperature 268 | 3 126 268 . Average Temperature 55 | 2 43 73 . Received Heat Transfer 222 | . 93 60 69 Siege Activations . | . . . . Martial Activations . | . . . . Shielding Activations . | . . . . Robots Disrupted . | . . . . Combat Hostiles . | . . . . Robots Corrupted . | . . . . Combat Hostiles . | . . . . Parts Fried 2 | . 2 . . Impact Corruptions . | . . . . Robots Melted . | . . . . Combat Hostiles . | . . . . Parts Melted . | . . . . Heat Transferred 1091 | . 300 383 408 Parts Sabotaged . | . . . . Parts Stolen . | . . . . Parts Stripped . | . . . . Power Chain Reactions 1 | . 1 . . Alert | -11 -10 -10 -10 ------- Run | Yrd Mat Min Sub Maximum Alert Level 1 | . 1 . . Low Security (%) 97 | 100 94 100 . Level 1 2 | . 5 . . Level 2 . | . . . . Level 3 . | . . . . Level 4 . | . . . . Level 5 . | . . . . High Security . | . . . . Max Security . | . . . . Peak Influence 214 | . 214 69 . Initial 69 | . . 69 . Average 49 | . 86 19 . Influence Increases 495 | . 370 105 20 Destroy 0b10 Robot/C 280 | . 180 80 20 Destroy 0b10 Robot/NC 30 | . 30 . . Destroy Leader 44 | . 44 . . Successful Hack 6 | . 6 . . Disable Machine 75 | . 75 . . Destroy Structure 45 | . 35 10 . Lose Combat Pursuer 15 | . . 15 . Influence Decreases 495 | . 192 273 30 Entered New Map 115 | . . 109 6 Time Decay 325 | . 172 129 24 Lost Part 55 | . 20 35 . Squads Dispatched 1 | . 1 . . Investigation . | . . . . Extermination . | . . . . Reinforcement 1 | . 1 . . Assault . | . . . . Garrison . | . . . . Intercept . | . . . . Searches Triggered . | . . . . Construction Impeded . | . . . . Haulers Reinforced . | . . . . Active Scanning Responses . | . . . . Cargo Convoy Interrupts . | . . . . Stealth | -11 -10 -10 -10 --------- Run | Yrd Mat Min Sub Distress Signals . | . . . . Communications Jammed . | . . . . Distress Signals . | . . . . Times Spotted 26 | . 17 7 2 Peak Tracking Total 4 | . 4 2 1 Tactical Retreats 2 | . . 2 . Traps | -11 -10 -10 -10 ------- Run | Yrd Mat Min Sub Traps Triggered 2 | . 1 1 . Indirectly . | . . . . Trap Hack Attempts . | . . . . Triggered . | . . . . Disarmed . | . . . . Reprogrammed . | . . . . Reused . | . . . . Traps Extracted . | . . . . Installed . | . . . . Triggered . | . . . . Machines | -11 -10 -10 -10 ---------- Run | Yrd Mat Min Sub Machines Disabled 5 | . 5 . . Max in Single Turn 4 | . 4 . . Machines Repaired . | . . . . Machines Dismantled . | . . . . Machines Sabotaged . | . . . . Overloaded Fab Kills . | . . . . Hacking | -11 -10 -10 -10 --------- Run | Yrd Mat Min Sub Machines Accessed 5 | . 4 1 . Terminals 3 | . 3 . . Fabricators . | . . . . Repair Stations 1 | . 1 . . Recycling Units . | . . . . Scanalyzers . | . . . . Garrison Access . | . . . . Total Hacks 15 | . 14 1 . Successful 6 | . 5 1 . Failed 8 | . 8 . . Catastrophic 1 | . 1 . . Database Lockouts 1 | . 1 . . Manual 11 | . 11 . . Terminals 11 | . 11 . . Fabricators . | . . . . Repair Stations 3 | . 3 . . Recycling Units . | . . . . Scanalyzers . | . . . . Garrison Access . | . . . . Terminal Hacks 3 | . 2 1 . Robot Analysis 1 | . 1 . . Open Door 1 | . . 1 . Locate Traps 1 | . 1 . . Fabricator Hacks . | . . . . Repair Station Hacks 2 | . 2 . . Scan Component 1 | . 1 . . Repair 1 | . 1 . . Recycling Unit Hacks . | . . . . Scanalyzer . | . . . . Garrison Access Hacks . | . . . . Unauthorized Hacks 1 | . 1 . . Terminals 1 | . 1 . . Track 1 | . 1 . . Fabricators . | . . . . Repair Stations . | . . . . Recycling Units . | . . . . Scanalyzers . | . . . . Garrison Access . | . . . . Data Cores Recovered . | . . . . Used . | . . . . Hacking Detections 3 | . 3 . . Full Trace Events . | . . . . Feedback Events . | . . . . Feedback Blocked . | . . . . Robot Schematics Acquired . | . . . . Robots Built . | . . . . Authchips . | . . . . Time . | . . . . Total Robot Build Rating . | . . . . Part Schematics Acquired . | . . . . Parts Built . | . . . . Authchips . | . . . . Time . | . . . . Total Part Build Rating . | . . . . Part Studies Acquired . | . . . . Parts Repaired . | . . . . Time 36 | . 36 . . Parts Recycled . | . . . . Recycled Matter . | . . . . Retrieved Matter . | . . . . Retrieved Components . | . . . . Parts Scanalyzed . | . . . . Part Schematics Acquired . | . . . . Parts Damaged . | . . . . Bothacking | -11 -10 -10 -10 ------------ Run | Yrd Mat Min Sub Used RIF Installer . | . . . . Robots Hacked . | . . . . Non-combat . | . . . . Combat . | . . . . Robot Hacks Applied . | . . . . Relay Couplers Released . | . . . . Fabnet Peak Effective % . | . . . . Robots Rewired . | . . . . Allies Hacked . | . . . . Hacks Repelled . | . . . . Allies | -11 -10 -10 -10 -------- Run | Yrd Mat Min Sub Total Allies . | . . . . Largest Group . | . . . . Highest-Rated Group . | . . . . Highest-Rated Ally . | . . . . Total Orders . | . . . . Ally Attacks . | . . . . Total Damage . | . . . . Kills . | . . . . Allies Corrupted . | . . . . Allies Melted . | . . . . Intel | -11 -10 -10 -10 ------- Run | Yrd Mat Min Sub Active Infowar (turns) . | . . . . Robot Analysis Total 1 | . 1 . . Derelict Logs Recovered . | . . . . Drone Launches . | . . . . Drone Recoveries . | . . . . Exploration | -11 -10 -10 -10 ------------- Run | Yrd Mat Min Sub Turns Passed 1170 | 89 435 394 252 Spaces Moved 699 | 57 214 238 190 Core 18 | 17 . 1 . Treads . | . . . . Legs 681 | 40 214 237 190 Wheels . | . . . . Hover . | . . . . Flight . | . . . . Fastest Speed 50 | 50 120 120 120 Average Speed 128 | 123 138 127 120 Slowest Speed 250 | 150 190 250 120 Overloaded Moves . | . . . . Propulsion Burnouts . | . . . . Robots Hopped . | . . . . Potential Cave-ins . | . . . . Cave-ins Triggered . | . . . . Exploration Rate (%) 23 | 3 42 34 15 Regions Visited 3 Branch Regions 2 Pre-discovered Areas . | . . . . Known Exits Taken . | . . . . Unknown Exits Taken 3 | 1 1 1 . Scrap Searched . | . . . . Spaces Dug 6 | . . 6 . Terrain Destroyed 50 | . 39 11 . Melee . | . . . . Projectile . | . . . . AOE 50 | . 39 11 . Terrain Rammed . | . . . . Walls Destroyed . | . . . . Machines Disabled . | . . . . Actions | -11 -10 -10 -10 --------- Run | Yrd Mat Min Sub Total 848 | 73 283 290 202 Wait 27 | . 13 12 2 Move 696 | 56 213 237 190 Hop . | . . . . Pick Up 25 | 10 8 7 . Fast Attach 4 | . 2 2 . Attach 11 | 6 1 4 . Detach . | . . . . Swap 6 | . 3 3 . Drop 5 | . 4 1 . Fire 74 | 1 39 24 10 Melee . | . . . . Ram . | . . . . Kick . | . . . . Crush . | . . . . Escape Stasis . | . . . . Rewire . | . . . . Trap . | . . . . Miscellaneous . | . . . . Route ------- -11/Scrapyard -10/Materials (discovered 2 exits: [*Mat] / *Min) -10/Mines -10/Subcaves History --------- Turn | Location | Event 13 | -11/Scrapyard | Discovered new exit (range 15) 90 | -11/Scrapyard | Entered Materials 236 | -10/Materials | Discovered new exit (range 5) 300 | -10/Materials | Build established: Mutant 482 | -10/Materials | Central database locked down 514 | -10/Materials | Discovered new exit (range 9) 525 | -10/Materials | Entered Mines 531 | -10/Mines | Met a Derelict who couldn't figure out how to use a Trap Extractor 583 | -10/Mines | Found a damaged Exp. Sensor Array with a note attached 586 | -10/Mines | Found Prototype Device 736 | -10/Mines | Excavation squad dispatched 736 | -10/Mines | A large section of the Mines collapsed 806 | -10/Mines | Lost 3 parts (1p2n) 849 | -10/Mines | Core integrity fell below 50% 905 | -10/Mines | Discovered new exit (range 13) 919 | -10/Mines | Entered Subcaves 920 | -10/Subcaves | Approached by a straggling Scientist 1164 | -10/Subcaves | Core integrity fell below 20% 1171 | -10/Subcaves | Destroyed by JQ-MFO(R) with Subdweller Laser Last Messages --------------- separated from was talking about a shortcut back to the UFD." 00939_ System corrupted: Energy discharge (-67). FC-O8D(c): "I think it's somewhere southwest of here" 01000_ >RLK A XUN OLUWM1PWMCWG=WJDZKPV 6Q> PH 01017_ System corrupted: Energy discharge (-50). FC-O8D(c): "I think it's somewhere south of here" 01062_ Y-45 Defender destroyed. 01066_ Subatomizers dissect the Heat Sink. FC-O8D(c): "I think it's somewhere south of here" 01072_ Acquired 50 matter. 01073_ System corrupted: Substantial component data lost. 01079_ Heat Sink fries itself beyond repair. FC-O8D(c): "I think it's somewhere south of here" 01157_ System corrupted: Energy discharge (-69). Map ----- +----------------------------------------------------+ | ???????????????###?# ?? ????# # | | ??????????????## ## ?? ##??# # | | ??????????????# ??? ### ## | | ??????????????# ??# #? | | ???????????????? ????### ## #? | | ?????????????????# ??????### ### ##? | | ??????????????????# ##???#### ### #? | | ???????????????????# ##### # ### | | ??????????????????## ## # | | ?????????????????## | | ?????????????????# # | | ?????????????????## ############## | | ??????????????????# ##?????????# # #### | | ??????????????????## #??????????## #??? | | ???????????????????## #???????????## ##??? | | ????????????????????# #????????????# #???? | | ????????????????????# #????????????# #???# | | ???????????????????## ##???????????# ##### | | ???????????????????# #???????????# | | ???????????????????# ##???????????####### | | ?????????????????### c #??????????????????? | | ????????????????## #??????????????????? | | ???????????????## ##??????????????????? | | ???????????????# ##???????????????????? | | ??????????????## #????????????????????? | | ??????????????# @ ##????????????????????? | | ??????????????# #?????????????????????? | | ??????????????## ????????????????????? | | ???????????????# ???????????????????? | | ???????????????# ??????????????????? | | ???????????????## ????????????????? | | ????????????????# ???????????????? | | ????????????????# ??????????????? | | ???????????????? ????????????? | | ???????????????## R ##???????????? | | ????????????????# ####????????????? | | ????????????????# #???????????????? | | ????????????????## #???????????????? | | ?????????????????# ## ????????????????? | | ????????????????? ?? ??????????????????? | | ?????????????????? ?? ????????????????????? | | ????????????????????????????????????????????? | | ????????????????????????????????????????????? | | ????????????????????????????????????????????? | | ????????????????????????????????????????????? | | ????????????????????????????????????????????? | | ????????????????????????????????????????????? | | ????????????????????????????????????????????? | | ????????????????????????????????????????????? | | ????????????????????????????????????????????? | +----------------------------------------------------+ Best States ------------- Heat Dissipation 35 Energy Generation 10 Energy Capacity 250 Matter Stores 300 Matter Capacity 300 Sight Range 16 Terrain Scan Density 10 Evasion (%) 55 Item Schematics ----------------- None Robot Schematics ------------------ None Fabricated ------------ Nothing Repaired ---------- Nothing Studied --------- None Alien Tech Used ----------------- None Achievements -------------- None Challenges ------------ None Game ------ Seed GravityPiercelightNanosword Manual? 0 Play Time 00:17:12 Cumulative 52.8 hours Start 2026.02.09 @ 20:43:12 End 2026.02.09 @ 20:59:43 Sessions 1 Manual Loads 0 Difficulty Rogue Special Mode None Game No. 39 Rogue 39 Adventurer 0 Explorer 0 Win Type - Total 1 Types 1/0/0/0/0/0/0/0/0/0 Lore% 20 Gallery% 33 Achievement% 22 Wizard Run 0 Options --------- Layout 1 ASCII 1 Keyboard 0 Movement Mouse Keybinds 0 Fullscreen 1 Font 32/SmallcapsGlow Map View 50x35 Zoom Use 0% Tactical HUD 1 Map Filters NONE Filters NONE Steam 1 RUN: ea7a9b30-4029-48af-b83d-6dcd8702fb1a